[Event "Krakow Championship-B 2022"]
[Site "Krakow"]
[Date "2022.06.25"]
[Round "1.9"]
[White "Maciejewski, Kamil"]
[Black "Cattaruzzo, Nicolo`"]
[Result "1-0"]
[ECO "A04"]
[WhiteElo "1939"]
[BlackElo "1744"]
[Annotator "NA RC"]
[PlyCount "77"]
[EventDate "2022.06.25"]
[EventType "swiss"]
[EventCountry "POL"]
[SourceTitle "playchess.com"]
[Source "ChessBase"]
[SourceQuality "1"]
[TimeControl "40/5400+30:1800+30"]

1. Nf3 {[%emt 0:00:04]} f5 {[%emt 0:01:07]} 2. d3 {[%emt 0:00:09]} Nf6 {[%emt 0:00:35]} 3. e4 {[%emt 0:00:08]} d6 {[%emt 0:01:06]} 4. Nc3 {[%emt 0:00:24]} Nc6 {[%emt 0:01:57]} 5. Bg5 {[%emt 0:10:55]} e6 {[%emt 0:04:58]} 6. exf5 {[%emt 0:04:19]} h6 {[%emt 0:01:32]} 7. Bd2 {[%emt 0:18:39]} exf5 {[%emt 0:09:15]} 8. Nh4 {[%emt 0:08:10]} Kf7 {[%emt 0:08:59]} 9. Nf3 {[%emt 0:09:09]} g6 {[%emt 0:18:17]} 10. d4 {[%emt 0:03:36]} Bg7 {[%emt 0:06:25]} 11. Bc4+ {[%emt 0:05:19]} d5 {[%emt 0:02:34]} 12. Bb5 {[%emt 0:01:25]} Ne4 {[%emt 0:06:32]} 13. Bf4 {[%emt 0:04:41]} Be6 {[%emt 0:07:41]} 14. Bxc6 {[%emt 0:06:33]} bxc6 {[%emt 0:01:08]} 15. Na4 {[%emt 0:04:24]} Rb8 {[%emt 0:03:51]} 16. O-O {[%emt 0:02:59]} Qe7 {[%emt 0:06:39]} 17. Ne5+ {[%emt 0:04:29]} Bxe5 {[%emt 0:01:44]} 18. Bxe5 {[%emt 0:00:07]} Rhc8 {[%emt 0:02:23]} 19. f3 {[%emt 0:00:49]} Nf6 {[%emt 0:01:33]} 20. Bxf6 {[%emt 0:03:30]} Qxf6 {[%emt 0:01:28]} 21. f4 {[%emt 0:01:25]} Rg8 {[%emt 0:02:23]} 22. b3 {[%emt 0:01:03]} Rbe8 {[%emt 0:03:43]} 23. c3 {[%emt 0:03:50]} Bc8 {[%emt 0:01:48]} 24. Nc5 {[%emt 0:01:22]} Re3 {[%emt 0:01:03]} 25. Qd2 {[%emt 0:02:24]} Rge8 {[%emt 0:00:30]} 26. Rfe1 {[%emt 0:00:52]} Qe7 {[%emt 0:00:49]} 27. Kf1 {[%emt 0:02:43]} g5 {[%emt 0:00:56]} 28. g3 {[%emt 0:00:30]} gxf4 {[%emt 0:00:30]} 29. gxf4 {[%emt 0:00:15]} Rxe1+ {[%emt 0:01:10]} 30. Rxe1 {[%emt 0:00:20]} Qxe1+ {[%emt 0:01:12]} 31. Qxe1 {[%emt 0:00:05]} Rxe1+ {[%emt 0:00:08]} 32. Kxe1 {[%emt 0:00:04]} Kg6 {[%emt 0:00:15]} 33. Kf2 {[%emt 0:00:40]} Kh5 {[%emt 0:01:53]} 34. Kg3 {[%emt 0:00:17]} a5 {[%emt 0:00:46]} 35. a4 {[%emt 0:01:07]} Kg6 {[%emt 0:00:17]} 36. b4 {[%emt 0:00:30]} axb4 {[%emt 0:00:38]} 37. cxb4 {[%emt 0:00:06]} Kf6 {[%emt 0:00:41]} 38. a5 {[%emt 0:00:10]} Kg6 {[%emt 0:00:00]} 39. a6 {[%emt 0:00:00]} 1-0

[Event "Krakow Championship-B 2022"]
[Site "Krakow"]
[Date "2022.06.25"]
[Round "1.11"]
[White "Budkiewicz, Magdalena"]
[Black "Majchrowski, Lech"]
[Result "1-0"]
[ECO "B72"]
[WhiteElo "1916"]
[BlackElo "1736"]
[Annotator "NA RC"]
[PlyCount "77"]
[EventDate "2022.06.25"]
[EventType "swiss"]
[EventCountry "POL"]
[SourceTitle "playchess.com"]
[Source "ChessBase"]
[SourceQuality "1"]
[TimeControl "40/5400+30:1800+30"]

1. e4 c5 2. Nf3 d6 3. d4 cxd4 4. Nxd4 Nf6 5. Nc3 g6 6. Be2 Bg7 7. Be3 O-O 8. O-O Nc6 9. Kh1 {[%emt 0:15:30]} Nxd4 {[%emt 0:06:49]} 10. Bxd4 {[%emt 0:01:01]} Be6 {[%emt 0:00:09]} 11. f4 {[%emt 0:01:03]} Qc8 {[%emt 0:00:20]} 12. Qd3 {[%emt 0:09:50]} d5 {[%emt 0:10:34]} 13. exd5 {[%emt 0:04:49]} Bf5 {[%emt 0:02:50]} 14. Qd2 {[%emt 0:17:31]} Rd8 {[%emt 0:04:07]} 15. Be5 {[%emt 0:01:23]} Qc5 {[%emt 0:03:43]} 16. Rad1 {[%emt 0:02:26]} Nxd5 {[%emt 0:06:57]} 17. Nxd5 {[%emt 0:07:25]} e6 {[%emt 0:00:08]} 18. Qc3 {[%emt 0:01:14]} Rxd5 {[%emt 0:04:44]} 19. Bxg7 {[%emt 0:02:47]} Be4 {[%emt 0:03:24]} 20. Qxc5 {[%emt 0:02:11]} Rxc5 {[%emt 0:00:16]} 21. Bc3 {[%emt 0:00:06]} Bxc2 {[%emt 0:00:50]} 22. Rd7 {[%emt 0:00:46]} Be4 {[%emt 0:01:13]} 23. Bf3 {[%emt 0:00:29]} Bc6 {[%emt 0:04:10]} 24. Bxc6 {[%emt 0:00:14]} Rxc6 {[%emt 0:00:21]} 25. Rfd1 {[%emt 0:00:21]} Rcc8 {[%emt 0:00:10]} 26. Rxb7 {[%emt 0:00:36]} Rd8 {[%emt 0:00:43]} 27. Rbd7 {[%emt 0:01:31]} Rxd7 {[%emt 0:00:22]} 28. Rxd7 {[%emt 0:00:04]} Kf8 {[%emt 0:00:23]} 29. Bf6 {[%emt 0:01:20]} Ke8 {[%emt 0:00:14]} 30. Re7+ {[%emt 0:00:46]} Kf8 {[%emt 0:00:18]} 31. Rb7 {[%emt 0:00:25]} Rc8 {[%emt 0:01:40]} 32. Kg1 {[%emt 0:00:20]} a6 {[%emt 0:02:10]} 33. Ra7 {[%emt 0:00:33]} Rc1+ {[%emt 0:00:54]} 34. Kf2 {[%emt 0:00:08]} Ke8 {[%emt 0:00:12]} 35. Rxa6 {[%emt 0:00:20]} Rc4 {[%emt 0:00:20]} 36. Kf3 {[%emt 0:00:42]} h5 {[%emt 0:00:34]} 37. Ra7 {[%emt 0:01:26]} Rc5 {[%emt 0:02:20]} 38. Re7+ {[%emt 0:00:19]} Kf8 {[%emt 0:00:13]} 39. Rd7 {[%emt 0:00:15]} 1-0

[Event "Krakow Championship-B 2022"]
[Site "Krakow"]
[Date "2022.06.25"]
[Round "1.12"]
[White "Al Azmi, Khalaf"]
[Black "Czaplak, Lukasz"]
[Result "1-0"]
[ECO "C54"]
[WhiteElo "1731"]
[BlackElo "1905"]
[Annotator "NA RC"]
[PlyCount "106"]
[EventDate "2022.06.25"]
[EventType "swiss"]
[EventCountry "POL"]
[SourceTitle "playchess.com"]
[Source "ChessBase"]
[SourceQuality "1"]
[TimeControl "40/5400+30:1800+30"]

1. e4 e5 2. Nf3 Nc6 3. Bc4 Bc5 4. c3 Nf6 5. d4 exd4 6. cxd4 Bb4+ 7. Nc3 Nxe4 8. O-O Bxc3 9. d5 Bf6 10. Re1 Ne7 11. Rxe4 d6 12. Bg5 Bxg5 13. Nxg5 h6 14. Qe2 hxg5 15. Re1 Be6 16. dxe6 f6 17. Re3 d5 18. Rh3 Rf8 19. Bd3 Qd6 20. Qh5+ Kd8 21. Qh7 Qb4 22. Kf1 Rg8 23. Bg6 c6 24. Rb3 Qa5 25. Bf7 Kc7 26. Bxg8 Rxg8 27. Rf3 Qb5+ 28. Kg1 Qxb2 29. Qh3 Qb4 30. Rc1 Qh4 31. Ra3 Qxh3 32. Rxh3 Kd6 33. Ra3 Nc8 34. Rb3 b6 35. Re1 Re8 36. Rbe3 d4 37. Re4 c5 38. g4 Re7 39. Kf1 Kd5 40. h4 Nd6 41. R4e2 gxh4 42. f4 Nc4 43. f5 Ne5 44. Rxe5+ fxe5 45. g5 e4 46. Ke2 Ke5 47. Rf1 Rc7 48. Rf4 h3 49. Kf1 e3 50. Re4+ Kxe4 51. f6 gxf6 52. gxf6 h2 53. Kg2 Rh7 1-0

[Event "Krakow Championship-B 2022"]
[Site "Krakow"]
[Date "2022.06.26"]
[Round "2.1"]
[White "Cichon, Bartlomiej"]
[Black "Szczurek, Krzysztof"]
[Result "0-1"]
[ECO "B90"]
[WhiteElo "1895"]
[BlackElo "2151"]
[Annotator "RC"]
[PlyCount "56"]
[EventDate "2022.06.25"]
[EventType "swiss"]
[EventCountry "POL"]
[SourceTitle "playchess.com"]
[Source "ChessBase"]
[SourceQuality "1"]
[TimeControl "40/5400+30:1800+30"]

1. e4 {[%emt 0:00:04]} c5 {[%emt 0:00:06]} 2. Nf3 {[%emt 0:00:05]} d6 {[%emt 0:00:08]} 3. d4 {[%emt 0:00:05]} cxd4 {[%emt 0:00:05]} 4. Nxd4 {[%emt 0:00:05]} Nf6 {[%emt 0:00:10]} 5. Nc3 {[%emt 0:00:04]} a6 {[%emt 0:00:05]} 6. h3 {[%emt 0:00:05]} e5 {[%emt 0:02:19]} 7. Nde2 {[%emt 0:00:07]} Be6 {[%emt 0:03:37]} 8. g4 {[%emt 0:00:21]} Be7 {[%emt 0:01:08]} 9. Bg2 {[%emt 0:02:03]} Nbd7 {[%emt 0:06:54]} 10. Be3 {[%emt 0:00:55]} b5 {[%emt 0:02:11]} 11. Qd2 {[%emt 0:03:43]} Rc8 {[%emt 0:03:26]} 12. Nd5 {[%emt 0:14:33]} Nc5 {[%emt 0:05:03]} 13. Ng3 {[%emt 0:03:44]} Nxd5 {[%emt 0:05:15]} 14. exd5 {[%emt 0:00:06]} Bd7 {[%emt 0:00:03]} 15. O-O-O {[%emt 0:10:25]} O-O {[%emt 0:02:03]} 16. f4 {[%emt 0:04:58]} exf4 {[%emt 0:02:43]} 17. Bxf4 {[%emt 0:00:24]} b4 {[%emt 0:01:38]} 18. Kb1 {[%emt 0:10:51]} Na4 {[%emt 0:03:27]} 19. Ne4 {[%emt 0:05:52]} Qc7 {[%emt 0:13:15]} 20. Rde1 {[%emt 0:08:14]} f5 {[%emt 0:03:11]} 21. Bg5 {[%emt 0:07:43]} Nc3+ {[%emt 0:22:15]} 22. bxc3 {[%emt 0:16:35]} bxc3 {[%emt 0:00:06]} 23. Qe3 {[%emt 0:01:35]} Bxg5 {[%emt 0:09:44]} 24. Nxg5 {[%emt 0:03:51]} Qb7+ {[%emt 0:00:54]} 25. Kc1 {[%emt 0:00:03]} h6 {[%emt 0:02:23]} 26. Ne6 {[%emt 0:00:43]} f4 {[%emt 0:00:32]} 27. Qe4 {[%emt 0:01:12]} Qb2+ {[%emt 0:00:15]} 28. Kd1 {[%emt 0:00:05]} Bb5 {[%emt 0:00:18]} 0-1

[Event "Krakow Championship-B 2022"]
[Site "Krakow"]
[Date "2022.06.26"]
[Round "2.2"]
[White "Spanton, Tim R"]
[Black "Skomial, Mateusz"]
[Result "0-1"]
[ECO "C42"]
[WhiteElo "1860"]
[BlackElo "2063"]
[Annotator "NA RC"]
[PlyCount "80"]
[EventDate "2022.06.25"]
[EventType "swiss"]
[EventCountry "POL"]
[SourceTitle "playchess.com"]
[Source "ChessBase"]
[SourceQuality "1"]
[TimeControl "40/5400+30:1800+30"]

1. e4 {[%emt 0:00:03]} e5 {[%emt 0:00:07]} 2. Nf3 {[%emt 0:00:05]} Nf6 {[%emt 0:00:15]} 3. Nxe5 {[%emt 0:00:06]} d6 {[%emt 0:00:05]} 4. Nf3 {[%emt 0:00:05]} Nxe4 {[%emt 0:00:04]} 5. d3 {[%emt 0:00:03]} Nf6 {[%emt 0:00:40]} 6. d4 {[%emt 0:00:06]} d5 {[%emt 0:01:54]} 7. Bd3 {[%emt 0:00:06]} c5 {[%emt 0:05:26]} 8. O-O {[%emt 0:01:08]} c4 {[%emt 0:03:06]} 9. Re1+ {[%emt 0:00:07]} Be7 {[%emt 0:00:06]} 10. Bf1 {[%emt 0:00:29]} O-O {[%emt 0:00:40]} 11. b3 {[%emt 0:00:18]} cxb3 {[%emt 0:00:35]} 12. axb3 {[%emt 0:00:12]} Nc6 {[%emt 0:01:10]} 13. h3 {[%emt 0:06:06]} Ne4 {[%emt 0:04:58]} 14. Ba3 {[%emt 0:03:52]} Bxa3 {[%emt 0:00:44]} 15. Nxa3 {[%emt 0:00:35]} Qf6 {[%emt 0:05:35]} 16. c4 {[%emt 0:02:09]} Bf5 {[%emt 0:04:44]} 17. Nc2 {[%emt 0:10:15]} Rad8 {[%emt 0:07:11]} 18. c5 {[%emt 0:02:42]} Ng5 {[%emt 0:03:35]} 19. Nxg5 {[%emt 0:01:04]} Qxg5 {[%emt 0:02:28]} 20. Bd3 {[%emt 0:00:32]} Bxh3 {[%emt 0:02:48]} 21. Qf3 {[%emt 0:02:45]} Be6 {[%emt 0:01:21]} 22. b4 {[%emt 0:00:38]} a6 {[%emt 0:00:24]} 23. b5 {[%emt 0:00:52]} axb5 {[%emt 0:00:04]} 24. Bxb5 {[%emt 0:00:18]} Rb8 {[%emt 0:05:11]} 25. Rab1 {[%emt 0:05:30]} h6 {[%emt 0:06:24]} 26. Rb2 {[%emt 0:02:09]} Bg4 {[%emt 0:17:39]} 27. Qg3 {[%emt 0:01:24]} Rbe8 {[%emt 0:00:18]} 28. Reb1 {[%emt 0:02:00]} Bf5 {[%emt 0:04:04]} 29. Qxg5 {[%emt 0:03:49]} hxg5 {[%emt 0:00:02]} 30. Rd1 {[%emt 0:00:33]} Bxc2 {[%emt 0:02:09]} 31. Rxc2 {[%emt 0:00:24]} Re4 {[%emt 0:01:24]} 32. Bxc6 {[%emt 0:05:25]} bxc6 {[%emt 0:00:02]} 33. Rb2 {[%emt 0:00:31]} Rfe8 {[%emt 0:00:07]} 34. Kf1 {[%emt 0:00:13]} g4 {[%emt 0:01:00]} 35. Rb6 {[%emt 0:02:01]} R8e6 {[%emt 0:00:05]} 36. Rb8+ {[%emt 0:00:38]} Kh7 {[%emt 0:00:05]} 37. Rc8 {[%emt 0:00:31]} Rh6 {[%emt 0:06:25]} 38. Kg1 {[%emt 0:00:28]} Rf6 {[%emt 0:00:05]} 39. Rd2 {[%emt 0:01:48]} g3 {[%emt 0:00:38]} 40. fxg3 {[%emt 0:00:31]} Re1+ {[%emt 0:00:08]} 0-1

[Event "Krakow Championship-B 2022"]
[Site "Krakow"]
[Date "2022.06.26"]
[Round "2.3"]
[White "Stemmler, Fabian"]
[Black "Cwiek, Ryszard"]
[Result "1-0"]
[ECO "B00"]
[WhiteElo "2054"]
[BlackElo "1880"]
[Annotator "NA RC"]
[PlyCount "125"]
[EventDate "2022.06.25"]
[EventType "swiss"]
[EventCountry "POL"]
[SourceTitle "playchess.com"]
[Source "ChessBase"]
[SourceQuality "1"]
[TimeControl "40/5400+30:1800+30"]

1. e4 {[%emt 0:00:49]} Nc6 {[%emt 0:01:07]} 2. d4 {[%emt 0:00:07]} e5 {[%emt 0:00:05]} 3. dxe5 {[%emt 0:00:05]} Nxe5 {[%emt 0:00:06]} 4. Nf3 {[%emt 0:00:13]} Nxf3+ {[%emt 0:06:19]} 5. Qxf3 {[%emt 0:00:32]} Qf6 {[%emt 0:01:25]} 6. Nc3 {[%emt 0:00:59]} Qxf3 {[%emt 0:06:09]} 7. gxf3 {[%emt 0:00:23]} Bb4 {[%emt 0:04:00]} 8. Bd2 {[%emt 0:00:35]} c6 {[%emt 0:04:44]} 9. Rg1 {[%emt 0:05:59]} Ne7 {[%emt 0:05:22]} 10. Bc4 {[%emt 0:17:54]} b5 {[%emt 0:37:14]} 11. Bb3 {[%emt 0:06:28]} Ng6 {[%emt 0:03:44]} 12. a4 {[%emt 0:12:51]} bxa4 {[%emt 0:03:43]} 13. Rxa4 {[%emt 0:06:17]} a5 {[%emt 0:01:24]} 14. Ne2 {[%emt 0:05:40]} Bd6 {[%emt 0:06:15]} 15. f4 {[%emt 0:14:27]} O-O {[%emt 0:00:53]} 16. Bc3 {[%emt 0:04:54]} Ba6 {[%emt 0:02:13]} 17. Rxa5 {[%emt 0:02:03]} Bxe2 {[%emt 0:00:31]} 18. Rxa8 {[%emt 0:00:12]} Rxa8 {[%emt 0:00:07]} 19. Kxe2 {[%emt 0:00:04]} Bxf4 {[%emt 0:03:14]} 20. h4 {[%emt 0:04:17]} Ne5 {[%emt 0:01:09]} 21. h5 {[%emt 0:02:02]} Re8 {[%emt 0:04:52]} 22. Ra1 {[%emt 0:01:58]} g5 {[%emt 0:00:41]} 23. Ra7 {[%emt 0:02:28]} d5 {[%emt 0:02:07]} 24. exd5 {[%emt 0:00:48]} cxd5 {[%emt 0:00:01]} 25. Kf1 {[%emt 0:00:20]} Rd8 {[%emt 0:00:50]} 26. h6 {[%emt 0:03:10]} Nc6 {[%emt 0:04:06]} 27. Bf6 {[%emt 0:03:21]} Nxa7 {[%emt 0:00:51]} 28. Bxd8 {[%emt 0:00:12]} Nc6 {[%emt 0:00:03]} 29. Bf6 {[%emt 0:00:48]} g4 {[%emt 0:00:28]} 30. Bxd5 {[%emt 0:00:35]} Nb4 {[%emt 0:00:04]} 31. Be4 {[%emt 0:00:34]} Bxh6 {[%emt 0:00:05]} 32. c3 {[%emt 0:00:24]} Na6 {[%emt 0:00:55]} 33. b4 {[%emt 0:01:46]} Bf4 {[%emt 0:00:57]} 34. Bd4 {[%emt 0:01:12]} Bd6 {[%emt 0:00:48]} 35. Bf5 {[%emt 0:01:53]} h5 {[%emt 0:00:05]} 36. b5 {[%emt 0:00:24]} Nc5 {[%emt 0:00:13]} 37. b6 {[%emt 0:00:49]} Kf8 {[%emt 0:00:23]} 38. Bf6 {[%emt 0:00:37]} Be7 {[%emt 0:00:40]} 39. Be5 {[%emt 0:00:25]} Ke8 {[%emt 0:00:48]} 40. Bc8 {[%emt 0:01:10]} Kd8 {[%emt 0:01:04]} 41. b7 {[%emt 0:30:43]} Na6 {[%emt 0:30:09]} 42. Bf5 {[%emt 0:00:14]} Bc5 {[%emt 0:00:54]} 43. Bd3 {[%emt 0:00:47]} f6 {[%emt 0:00:29]} 44. Bxa6 {[%emt 0:00:28]} Ba7 {[%emt 0:00:10]} 45. b8=Q+ {[%emt 0:00:11]} Bxb8 {[%emt 0:00:03]} 46. Bxb8 {[%emt 0:00:11]} h4 {[%emt 0:00:02]} 47. Be2 {[%emt 0:00:25]} Kc8 {[%emt 0:00:16]} 48. Bf4 {[%emt 0:00:10]} f5 {[%emt 0:00:05]} 49. Bd3 {[%emt 0:00:06]} h3 {[%emt 0:00:07]} 50. Bxf5+ {[%emt 0:00:04]} Kb7 {[%emt 0:00:04]} 51. Bxg4 {[%emt 0:00:06]} Kc6 {[%emt 0:00:05]} 52. Bxh3 {[%emt 0:00:07]} Kc5 {[%emt 0:00:03]} 53. Ke2 {[%emt 0:00:11]} Kc4 {[%emt 0:00:05]} 54. Kd2 {[%emt 0:00:10]} Kc5 {[%emt 0:00:06]} 55. Be3+ {[%emt 0:00:09]} Kc4 {[%emt 0:00:05]} 56. Bf1+ {[%emt 0:00:11]} Kb3 {[%emt 0:00:04]} 57. c4 {[%emt 0:00:09]} Kb2 {[%emt 0:00:04]} 58. c5 {[%emt 0:00:09]} Ka2 {[%emt 0:00:04]} 59. c6 {[%emt 0:00:15]} Kb3 {[%emt 0:00:04]} 60. c7 {[%emt 0:00:07]} Ka2 {[%emt 0:00:03]} 61. c8=Q {[%emt 0:00:09]} Kb1 {[%emt 0:00:03]} 62. Qc1+ {[%emt 0:02:17]} Ka2 {[%emt 0:00:03]} 63. Bc4# {[%emt 0:00:08]} 1-0

[Event "Krakow Championship-B 2022"]
[Site "Krakow"]
[Date "2022.06.26"]
[Round "2.4"]
[White "Duncan, Patrick C M"]
[Black "Matuszczyk, Mateusz"]
[Result "1-0"]
[ECO "A01"]
[WhiteElo "2013"]
[BlackElo "1830"]
[Annotator "NA RC"]
[PlyCount "83"]
[EventDate "2022.06.25"]
[EventType "swiss"]
[EventCountry "POL"]
[SourceTitle "playchess.com"]
[Source "ChessBase"]
[SourceQuality "1"]
[TimeControl "40/5400+30:1800+30"]

1. b3 c5 2. Bb2 Nf6 3. e3 g6 4. Bxf6 exf6 5. c4 d5 6. cxd5 Qxd5 7. Nc3 Qd8 8. Nf3 Nc6 9. Bb5 Bd7 10. O-O Bg7 11. Rc1 O-O 12. Na4 b6 13. d4 Nxd4 14. Bxd7 Nxf3+ 15. gxf3 f5 16. f4 Qh4 17. Qf3 Rad8 18. Rfd1 Qe7 19. Bb5 g5 20. fxg5 Qxg5+ 21. Kh1 Kh8 22. Rxd8 Rxd8 23. Rd1 Rxd1+ 24. Qxd1 Qh4 25. f4 Qe7 26. Bc6 b5 27. Bxb5 Qe4+ 28. Kg1 Qxe3+ 29. Kg2 Bd4 30. Qf3 Qd2+ 31. Kh3 h6 32. Bd3 c4 33. Bxc4 Qxa2 34. Qe2 Qb1 35. Qe8+ Kh7 36. Qxf7+ Bg7 37. Qg8+ Kg6 38. Qe8+ Kh7 39. Bg8+ Kh8 40. Bf7+ Bf8 41. Qxf8+ Kh7 42. Qg8# 1-0

[Event "Krakow Championship-B 2022"]
[Site "Krakow"]
[Date "2022.06.26"]
[Round "2.5"]
[White "Malik, Maciej"]
[Black "Karut, Kacper"]
[Result "1-0"]
[ECO "B11"]
[WhiteElo "1984"]
[BlackElo "1775"]
[Annotator "NA RC"]
[PlyCount "113"]
[EventDate "2022.06.25"]
[EventType "swiss"]
[EventCountry "POL"]
[SourceTitle "playchess.com"]
[Source "ChessBase"]
[SourceQuality "1"]
[TimeControl "40/5400+30:1800+30"]

1. e4 {[%emt 0:00:23]} c6 {[%emt 0:00:17]} 2. Nf3 {[%emt 0:00:15]} d5 {[%emt 0:00:08]} 3. Nc3 {[%emt 0:00:09]} Bg4 {[%emt 0:00:11]} 4. d4 {[%emt 0:00:28]} Nf6 {[%emt 0:01:39]} 5. h3 {[%emt 0:01:30]} Bxf3 {[%emt 0:00:21]} 6. Qxf3 {[%emt 0:00:08]} e6 {[%emt 0:00:58]} 7. Bg5 {[%emt 0:14:49]} Be7 {[%emt 0:01:42]} 8. exd5 {[%emt 0:05:28]} Nxd5 {[%emt 0:02:50]} 9. Bxe7 {[%emt 0:02:18]} Qxe7 {[%emt 0:01:15]} 10. O-O-O {[%emt 0:00:42]} Nxc3 {[%emt 0:01:37]} 11. Qxc3 {[%emt 0:00:24]} Nd7 {[%emt 0:05:28]} 12. Qg3 {[%emt 0:00:28]} O-O {[%emt 0:00:47]} 13. Bd3 {[%emt 0:03:38]} Nf6 {[%emt 0:04:44]} 14. Qh4 {[%emt 0:01:03]} h6 {[%emt 0:05:53]} 15. Rhg1 {[%emt 0:09:57]} Nd5 {[%emt 0:04:50]} 16. Qe4 {[%emt 0:01:19]} Qg5+ {[%emt 0:01:21]} 17. Kb1 {[%emt 0:00:14]} Nf6 {[%emt 0:00:21]} 18. Qe2 {[%emt 0:00:46]} Rfe8 {[%emt 0:07:33]} 19. g3 {[%emt 0:00:52]} e5 {[%emt 0:10:36]} 20. h4 {[%emt 0:09:02]} Qh5 {[%emt 0:03:27]} 21. g4 {[%emt 0:00:19]} Qxh4 {[%emt 0:00:17]} 22. dxe5 {[%emt 0:00:21]} Qg5 {[%emt 0:01:48]} 23. Rde1 {[%emt 0:01:43]} Qf4 {[%emt 0:23:32]} 24. Rg3 {[%emt 0:05:58]} Re7 {[%emt 0:02:52]} 25. Re3 {[%emt 0:00:48]} Nd5 {[%emt 0:01:25]} 26. Re4 {[%emt 0:00:47]} Qg5 {[%emt 0:01:05]} 27. Qf3 {[%emt 0:01:06]} Rae8 {[%emt 0:03:45]} 28. Qg3 {[%emt 0:00:15]} Qd2 {[%emt 0:01:38]} 29. a3 {[%emt 0:03:49]} b5 {[%emt 0:03:53]} 30. f4 {[%emt 0:04:01]} Qa5 {[%emt 0:01:35]} 31. g5 {[%emt 0:09:34]} hxg5 {[%emt 0:05:35]} 32. Qxg5 {[%emt 0:00:41]} b4 {[%emt 0:01:02]} 33. Rg1 {[%emt 0:04:02]} f6 {[%emt 0:01:33]} 34. exf6 {[%emt 0:03:12]} Nc3+ {[%emt 0:00:15]} 35. bxc3 {[%emt 0:00:15]} Qxg5 {[%emt 0:00:04]} 36. Rxg5 {[%emt 0:00:05]} Rxe4 {[%emt 0:00:04]} 37. Bxe4 {[%emt 0:00:14]} Rxe4 {[%emt 0:00:04]} 38. Rxg7+ {[%emt 0:00:05]} Kf8 {[%emt 0:00:11]} 39. cxb4 {[%emt 0:00:04]} Rxf4 {[%emt 0:00:33]} 40. Rxa7 {[%emt 0:00:06]} Rxf6 {[%emt 0:00:12]} 41. Kb2 {[%emt 0:30:04]} Ke8 {[%emt 0:30:19]} 42. Kb3 {[%emt 0:00:11]} Kd8 {[%emt 0:00:16]} 43. a4 {[%emt 0:00:08]} Kc8 {[%emt 0:01:11]} 44. Kc4 {[%emt 0:00:26]} Kb8 {[%emt 0:01:44]} 45. Rh7 {[%emt 0:00:06]} Rf5 {[%emt 0:00:09]} 46. b5 {[%emt 0:00:42]} cxb5+ {[%emt 0:00:04]} 47. axb5 {[%emt 0:00:02]} Rf4+ {[%emt 0:00:29]} 48. Kb3 {[%emt 0:00:06]} Rf3+ {[%emt 0:02:08]} 49. Kb4 {[%emt 0:00:06]} Rf4+ {[%emt 0:00:34]} 50. c4 {[%emt 0:00:05]} Rg4 {[%emt 0:00:37]} 51. b6 {[%emt 0:00:25]} Rf4 {[%emt 0:00:00]} 52. Kb5 {[%emt 0:00:00]} Rf1 {[%emt 0:00:00]} 53. c5 {[%emt 0:00:00]} Rf5 {[%emt 0:00:00]} 54. Ka6 {[%emt 0:00:00]} Rxc5 {[%emt 0:00:00]} 55. Rh8+ {[%emt 0:00:00]} Rc8 {[%emt 0:00:00]} 56. Rxc8+ {[%emt 0:00:00]} Kxc8 {[%emt 0:00:00]} 57. Ka7 {[%emt 0:00:00]} 1-0

[Event "Krakow Championship-B 2022"]
[Site "Krakow"]
[Date "2022.06.26"]
[Round "2.6"]
[White "Stokes, Paul C"]
[Black "Maciejewski, Kamil"]
[Result "0-1"]
[ECO "A46"]
[WhiteElo "1857"]
[BlackElo "1939"]
[Annotator "NA RC"]
[PlyCount "132"]
[EventDate "2022.06.25"]
[EventType "swiss"]
[EventCountry "POL"]
[SourceTitle "playchess.com"]
[Source "ChessBase"]
[SourceQuality "1"]
[TimeControl "40/5400+30:1800+30"]

1. d4 {[%emt 0:00:03]} Nf6 {[%emt 0:00:11]} 2. Nf3 {[%emt 0:00:08]} d5 {[%emt 0:00:22]} 3. g3 {[%emt 0:00:25]} e6 {[%emt 0:03:05]} 4. Bg2 {[%emt 0:00:13]} c5 {[%emt 0:03:37]} 5. O-O {[%emt 0:00:09]} Nc6 {[%emt 0:06:54]} 6. c3 {[%emt 0:09:30]} Bd6 {[%emt 0:07:50]} 7. Bg5 {[%emt 0:04:26]} h6 {[%emt 0:03:25]} 8. Bxf6 {[%emt 0:00:20]} Qxf6 {[%emt 0:01:37]} 9. e3 {[%emt 0:01:04]} O-O {[%emt 0:04:22]} 10. Nbd2 {[%emt 0:00:06]} cxd4 {[%emt 0:06:06]} 11. exd4 {[%emt 0:00:49]} Bd7 {[%emt 0:03:51]} 12. Re1 {[%emt 0:01:15]} Rfc8 {[%emt 0:04:59]} 13. Qe2 {[%emt 0:03:53]} Qd8 {[%emt 0:05:48]} 14. Ne5 {[%emt 0:03:36]} Nxe5 {[%emt 0:02:44]} 15. dxe5 {[%emt 0:00:09]} Be7 {[%emt 0:02:14]} 16. c4 {[%emt 0:04:16]} Bc6 {[%emt 0:03:38]} 17. Red1 {[%emt 0:13:11]} Qb6 {[%emt 0:16:18]} 18. b3 {[%emt 0:04:15]} Rd8 {[%emt 0:05:04]} 19. cxd5 {[%emt 0:03:37]} Bxd5 {[%emt 0:00:47]} 20. Nc4 {[%emt 0:02:13]} Qa6 {[%emt 0:02:21]} 21. Qb2 {[%emt 0:09:02]} Bxg2 {[%emt 0:02:59]} 22. Kxg2 {[%emt 0:00:21]} b5 {[%emt 0:00:53]} 23. Ne3 {[%emt 0:02:24]} Bc5 {[%emt 0:01:50]} 24. Rxd8+ {[%emt 0:05:41]} Rxd8 {[%emt 0:00:05]} 25. Rd1 {[%emt 0:00:10]} Qc6+ {[%emt 0:01:22]} 26. Kg1 {[%emt 0:00:50]} Rxd1+ {[%emt 0:01:37]} 27. Nxd1 {[%emt 0:00:07]} Qe4 {[%emt 0:01:53]} 28. Qd2 {[%emt 0:02:25]} Qxe5 {[%emt 0:01:26]} 29. Ne3 {[%emt 0:02:20]} Bxe3 {[%emt 0:01:30]} 30. fxe3 {[%emt 0:00:08]} g6 {[%emt 0:01:55]} 31. Kf2 {[%emt 0:01:34]} a6 {[%emt 0:02:03]} 32. Kg1 {[%emt 0:07:21]} h5 {[%emt 0:00:43]} 33. Kf2 {[%emt 0:00:22]} Kg7 {[%emt 0:01:16]} 34. h4 {[%emt 0:01:03]} Qf5+ {[%emt 0:01:00]} 35. Kg1 {[%emt 0:00:59]} Qd5 {[%emt 0:01:37]} 36. Qf2 {[%emt 0:01:26]} e5 {[%emt 0:00:35]} 37. Kh2 {[%emt 0:01:43]} a5 {[%emt 0:00:30]} 38. Kg1 {[%emt 0:00:44]} b4 {[%emt 0:00:26]} 39. Kh2 {[%emt 0:00:20]} e4 {[%emt 0:00:35]} 40. Kg1 {[%emt 0:01:16]} Qf5 {[%emt 0:00:30]} 41. Qd2 {[%emt 0:31:08]} Qe5 {[%emt 0:30:29]} 42. Kf2 {[%emt 0:01:46]} Qf6+ {[%emt 0:00:00]} 43. Kg2 {[%emt 0:00:00]} Qc3 {[%emt 0:00:00]} 44. Qf2 {[%emt 0:00:00]} Kf8 {[%emt 0:00:00]} 45. Kh2 {[%emt 0:00:00]} Ke7 {[%emt 0:00:00]} 46. Kg2 {[%emt 0:00:00]} Ke6 {[%emt 0:00:00]} 47. Kh2 {[%emt 0:00:00]} Qd3 {[%emt 0:00:00]} 48. Kg2 {[%emt 0:00:00]} Qd1 {[%emt 0:00:00]} 49. Kh2 {[%emt 0:00:00]} f6 {[%emt 0:00:00]} 50. Kg2 {[%emt 0:00:00]} Qf3+ {[%emt 0:00:00]} 51. Qxf3 {[%emt 0:00:00]} exf3+ {[%emt 0:00:00]} 52. Kxf3 {[%emt 0:00:00]} Ke5 {[%emt 0:00:00]} 53. e4 {[%emt 0:00:00]} Kd4 {[%emt 0:00:00]} 54. Kf4 {[%emt 0:00:00]} Kc3 {[%emt 0:00:00]} 55. e5 {[%emt 0:00:00]} fxe5+ {[%emt 0:00:00]} 56. Kxe5 {[%emt 0:00:00]} Kb2 {[%emt 0:00:00]} 57. Kf6 {[%emt 0:00:00]} Kxa2 {[%emt 0:00:00]} 58. Kxg6 {[%emt 0:00:00]} Kxb3 {[%emt 0:00:00]} 59. Kxh5 {[%emt 0:00:00]} a4 {[%emt 0:00:00]} 60. g4 {[%emt 0:00:00]} a3 {[%emt 0:00:00]} 61. g5 {[%emt 0:00:00]} a2 {[%emt 0:00:00]} 62. g6 {[%emt 0:00:00]} a1=Q {[%emt 0:00:00]} 63. Kh6 {[%emt 0:00:00]} Qh8+ {[%emt 0:00:00]} 64. Kg5 {[%emt 0:00:00]} Ka4 {[%emt 0:00:00]} 65. h5 {[%emt 0:00:00]} b3 {[%emt 0:00:00]} 66. h6 {[%emt 0:00:00]} b2 {[%emt 0:00:00]} 0-1